[Event "Titled Tuesday Blitz September 13 Early 2022"]
[White "Kamsky, Gata"]
[Black "Bluebaum, Matthias"]
[WhiteFideId "2000024"]
[BlackFideId "24651516"]
[WhiteElo "2666"]
[BlackElo "2633"]
[Result "1-0"]
[Round "11"]
[TimeControl "180+1"]
[Date "2022.09.13"]
[WhiteClock "0:00:05"]
[BlackClock "0:00:15"]

1. e4 {[%clk 0:03:00]}  c6 {[%clk 0:02:59]} 2. Nf3 {[%clk 0:02:57]}  d5 {[%clk 0:03:00]} 3. d3 {[%clk 0:02:56]}  dxe4 {[%clk 0:02:59]} 4. dxe4 {[%clk 0:02:56]}  Qxd1+ {[%clk 0:03:00]} 5. Kxd1 {[%clk 0:02:56]}  Nf6 {[%clk 0:03:01]} 6. Nfd2 {[%clk 0:02:56]}  g5 {[%clk 0:03:01]} 7. a4 {[%clk 0:02:55]}  g4 {[%clk 0:03:02]} 8. a5 {[%clk 0:02:55]}  h5 {[%clk 0:03:02]} 9. Nc3 {[%clk 0:02:53]}  Be6 {[%clk 0:03:01]} 10. Bc4 {[%clk 0:02:52]}  Bxc4 {[%clk 0:03:00]} 11. Nxc4 {[%clk 0:02:52]}  Nbd7 {[%clk 0:03:00]} 12. Ke2 {[%clk 0:02:50]}  Nc5 {[%clk 0:02:46]} 13. f3 {[%clk 0:02:34]}  Bh6 {[%clk 0:02:30]} 14. Bxh6 {[%clk 0:02:25]}  Rxh6 {[%clk 0:02:31]} 15. Rad1 {[%clk 0:02:22]}  Rg6 {[%clk 0:02:27]} 16. Ke3 {[%clk 0:02:14]}  gxf3 {[%clk 0:02:19]} 17. gxf3 {[%clk 0:02:14]}  Rg2 {[%clk 0:02:19]} 18. Rd2 {[%clk 0:02:12]}  Rxd2 {[%clk 0:02:17]} 19. Nxd2 {[%clk 0:02:03]}  O-O-O {[%clk 0:02:17]} 20. Rg1 {[%clk 0:01:59]}  Ne6 {[%clk 0:02:18]} 21. Nc4 {[%clk 0:01:55]}  Nd4 {[%clk 0:02:13]} 22. Rg2 {[%clk 0:01:55]}  Ne6 {[%clk 0:01:56]} 23. Ne5 {[%clk 0:01:54]}  Rf8 {[%clk 0:01:57]} 24. h4 {[%clk 0:01:51]}  Nd7 {[%clk 0:01:55]} 25. Nd3 {[%clk 0:01:32]}  f5 {[%clk 0:01:51]} 26. Ne2 {[%clk 0:01:17]}  fxe4 {[%clk 0:01:50]} 27. fxe4 {[%clk 0:01:17]}  Nf6 {[%clk 0:01:21]} 28. Ne5 {[%clk 0:01:14]}  Kc7 {[%clk 0:01:20]} 29. b4 {[%clk 0:01:02]}  b6 {[%clk 0:01:11]} 30. axb6+ {[%clk 0:00:59]}  axb6 {[%clk 0:01:12]} 31. Rg6 {[%clk 0:00:33]}  b5 {[%clk 0:01:04]} 32. Ng3 {[%clk 0:00:21]}  Kd6 {[%clk 0:00:57]} 33. Nd3 {[%clk 0:00:21]}  Ng4+ {[%clk 0:00:52]} 34. Kd2 {[%clk 0:00:21]}  Kd7 {[%clk 0:00:53]} 35. Nxh5 {[%clk 0:00:20]}  Nf2 {[%clk 0:00:47]} 36. Ke3 {[%clk 0:00:16]}  Nd1+ {[%clk 0:00:45]} 37. Kd2 {[%clk 0:00:16]}  Nf2 {[%clk 0:00:46]} 38. Ng3 {[%clk 0:00:15]}  Nxd3 {[%clk 0:00:42]} 39. cxd3 {[%clk 0:00:15]}  Nd4 {[%clk 0:00:43]} 40. Kc3 {[%clk 0:00:14]}  e5 {[%clk 0:00:42]} 41. Rg5 {[%clk 0:00:14]}  Ke6 {[%clk 0:00:36]} 42. Nf5 {[%clk 0:00:14]}  Nxf5 {[%clk 0:00:20]} 43. Rxf5 {[%clk 0:00:14]}  Ra8 {[%clk 0:00:19]} 44. Rg5 {[%clk 0:00:12]}  Ra3+ {[%clk 0:00:19]} 45. Kc2 {[%clk 0:00:12]}  Ra2+ {[%clk 0:00:20]} 46. Kb3 {[%clk 0:00:13]}  Rh2 {[%clk 0:00:20]} 47. h5 {[%clk 0:00:12]}  Rh3 {[%clk 0:00:19]} 48. Kc3 {[%clk 0:00:12]}  Rh1 {[%clk 0:00:20]} 49. Rg6+ {[%clk 0:00:12]}  Ke7 {[%clk 0:00:20]} 50. h6 {[%clk 0:00:12]}  Kf7 {[%clk 0:00:20]} 51. Rg7+ {[%clk 0:00:08]}  Kf6 {[%clk 0:00:17]} 52. Rc7 {[%clk 0:00:08]}  Kg5 {[%clk 0:00:16]} 53. h7 {[%clk 0:00:08]}  Kf4 {[%clk 0:00:16]} 54. Rxc6 {[%clk 0:00:07]}  Rxh7 {[%clk 0:00:16]} 55. Rb6 {[%clk 0:00:06]}  Rc7+ {[%clk 0:00:16]} 56. Kd2 {[%clk 0:00:05]}  Rh7 {[%clk 0:00:07]} 57. Rxb5 {[%clk 0:00:05]}  Rh2+ {[%clk 0:00:08]} 58. Kc3 {[%clk 0:00:06]}  Rh1 {[%clk 0:00:08]} 59. Rd5 {[%clk 0:00:05]}  Ke3 {[%clk 0:00:09]} 60. b5 {[%clk 0:00:05]}  Rc1+ {[%clk 0:00:09]} 61. Kb4 {[%clk 0:00:05]}  Rc8 {[%clk 0:00:09]} 62. b6 {[%clk 0:00:05]}  Kd2 {[%clk 0:00:10]} 63. Kb5 {[%clk 0:00:05]}  Rc1 {[%clk 0:00:11]} 64. b7 {[%clk 0:00:05]}  Rb1+ {[%clk 0:00:11]} 65. Kc6 {[%clk 0:00:06]}  Rc1+ {[%clk 0:00:12]} 66. Rc5 {[%clk 0:00:06]}  Rh1 {[%clk 0:00:13]} 67. b8=Q {[%clk 0:00:06]}  Rh6+ {[%clk 0:00:14]} 68. Kd5 {[%clk 0:00:06]}  Rh3 {[%clk 0:00:15]} 69. Qb2+ {[%clk 0:00:05]} 1-0


[Site "https://www.chess.com"]

[Event "Titled Tuesday Blitz September 13 Early 2022"]
[White "Kosakowski, Jakub"]
[Black "Samunenkov, Ihor"]
[WhiteFideId "1185080"]
[BlackFideId "14187086"]
[WhiteElo "2453"]
[BlackElo "2441"]
[Result "1-0"]
[Round "11"]
[TimeControl "180+1"]
[Date "2022.09.13"]
[WhiteClock "0:01:42"]
[BlackClock "0:00:52"]

1. e4 {[%clk 0:02:59]}  c5 {[%clk 0:03:00]} 2. Nf3 {[%clk 0:02:58]}  Nc6 {[%clk 0:03:00]} 3. d4 {[%clk 0:02:56]}  cxd4 {[%clk 0:03:01]} 4. Nxd4 {[%clk 0:02:57]}  Nf6 {[%clk 0:03:01]} 5. Nc3 {[%clk 0:02:57]}  e5 {[%clk 0:03:02]} 6. Ndb5 {[%clk 0:02:57]}  d6 {[%clk 0:03:03]} 7. Nd5 {[%clk 0:02:58]}  Nxd5 {[%clk 0:03:03]} 8. exd5 {[%clk 0:02:59]}  Ne7 {[%clk 0:03:04]} 9. c4 {[%clk 0:02:57]}  Ng6 {[%clk 0:03:04]} 10. Qa4 {[%clk 0:02:54]}  Bd7 {[%clk 0:03:04]} 11. Qb4 {[%clk 0:02:54]}  Qb8 {[%clk 0:03:04]} 12. h4 {[%clk 0:02:54]}  h5 {[%clk 0:03:04]} 13. Bg5 {[%clk 0:02:50]}  a6 {[%clk 0:02:15]} 14. Nc3 {[%clk 0:02:49]}  f6 {[%clk 0:02:14]} 15. Bd3 {[%clk 0:02:47]}  f5 {[%clk 0:02:00]} 16. O-O-O {[%clk 0:02:20]}  Be7 {[%clk 0:01:58]} 17. Bxe7 {[%clk 0:02:15]}  Kxe7 {[%clk 0:01:58]} 18. g3 {[%clk 0:02:15]}  Rc8 {[%clk 0:01:45]} 19. Kb1 {[%clk 0:02:11]}  e4 {[%clk 0:01:42]} 20. Rhe1 {[%clk 0:02:05]}  Ne5 {[%clk 0:01:40]} 21. f3 {[%clk 0:01:55]}  a5 {[%clk 0:01:20]} 22. Qa3 {[%clk 0:01:47]}  exf3 {[%clk 0:01:05]} 23. Rxe5+ {[%clk 0:01:46]}  Kf6 {[%clk 0:01:02]} 24. Re3 {[%clk 0:01:45]}  f2 {[%clk 0:00:57]} 25. Rf3 {[%clk 0:01:43]}  Rc5 {[%clk 0:00:52]} 26. Ne4+ {[%clk 0:01:42]} 1-0


[Site "https://www.chess.com"]

[Event "Titled Tuesday Blitz September 13 Early 2022"]
[White "Koustav, Chatterjee"]
[Black "Pap, Gyula"]
[WhiteFideId "25073060"]
[BlackFideId "725323"]
[WhiteElo "2196"]
[BlackElo "2519"]
[Result "0-1"]
[Round "11"]
[TimeControl "180+1"]
[Date "2022.09.13"]
[WhiteClock "0:00:07"]
[BlackClock "0:00:06"]

1. d4 {[%clk 0:03:00]}  e6 {[%clk 0:02:59]} 2. Nf3 {[%clk 0:03:01]}  c5 {[%clk 0:02:57]} 3. c4 {[%clk 0:02:57]}  cxd4 {[%clk 0:02:55]} 4. Nxd4 {[%clk 0:02:58]}  Nf6 {[%clk 0:02:54]} 5. g3 {[%clk 0:02:53]}  Qc7 {[%clk 0:02:51]} 6. b3 {[%clk 0:02:40]}  a6 {[%clk 0:02:33]} 7. Bg2 {[%clk 0:02:39]}  Nc6 {[%clk 0:02:33]} 8. O-O {[%clk 0:02:38]}  Be7 {[%clk 0:02:28]} 9. Nc3 {[%clk 0:02:29]}  O-O {[%clk 0:02:27]} 10. Bb2 {[%clk 0:02:17]}  d6 {[%clk 0:02:27]} 11. Rc1 {[%clk 0:02:16]}  Nxd4 {[%clk 0:02:18]} 12. Qxd4 {[%clk 0:02:17]}  Bd7 {[%clk 0:02:19]} 13. Rfd1 {[%clk 0:02:03]}  Rfd8 {[%clk 0:02:12]} 14. Ne4 {[%clk 0:01:53]}  Ne8 {[%clk 0:02:05]} 15. h4 {[%clk 0:01:47]}  Bc6 {[%clk 0:02:01]} 16. Qe3 {[%clk 0:01:35]}  Qa5 {[%clk 0:01:55]} 17. a3 {[%clk 0:01:27]}  Rac8 {[%clk 0:01:51]} 18. b4 {[%clk 0:01:22]}  Qf5 {[%clk 0:01:47]} 19. Bf3 {[%clk 0:01:10]}  h5 {[%clk 0:01:18]} 20. Ng5 {[%clk 0:00:46]}  Bxf3 {[%clk 0:01:02]} 21. exf3 {[%clk 0:00:38]}  Bf6 {[%clk 0:01:03]} 22. Bd4 {[%clk 0:00:34]}  Rc6 {[%clk 0:00:51]} 23. Ne4 {[%clk 0:00:25]}  Bxd4 {[%clk 0:00:46]} 24. Rxd4 {[%clk 0:00:25]}  Rdc8 {[%clk 0:00:42]} 25. Rcd1 {[%clk 0:00:21]}  Rxc4 {[%clk 0:00:13]} 26. Rxc4 {[%clk 0:00:20]}  Rxc4 {[%clk 0:00:14]} 27. Nxd6 {[%clk 0:00:20]}  Nxd6 {[%clk 0:00:15]} 28. Rxd6 {[%clk 0:00:20]}  Qb1+ {[%clk 0:00:08]} 29. Kg2 {[%clk 0:00:19]}  Rc1 {[%clk 0:00:08]} 30. f4 {[%clk 0:00:10]}  Rg1+ {[%clk 0:00:06]} 31. Kf3 {[%clk 0:00:10]}  Qf5 {[%clk 0:00:02]} 32. Rd8+ {[%clk 0:00:07]}  Kh7 {[%clk 0:00:03]} 33. Qd3 {[%clk 0:00:08]}  Qxd3+ {[%clk 0:00:01]} 34. Rxd3 {[%clk 0:00:09]}  Ra1 {[%clk 0:00:02]} 35. Ke4 {[%clk 0:00:09]}  Kg6 {[%clk 0:00:02]} 36. Ke5 {[%clk 0:00:08]}  b5 {[%clk 0:00:02]} 37. Kd6 {[%clk 0:00:08]}  Rc1 {[%clk 0:00:03]} 38. Ke5 {[%clk 0:00:07]}  Re1+ {[%clk 0:00:02]} 39. Kd4 {[%clk 0:00:07]}  Kf5 {[%clk 0:00:03]} 40. Kc5 {[%clk 0:00:07]}  e5 {[%clk 0:00:02]} 41. fxe5 {[%clk 0:00:07]}  Rxe5+ {[%clk 0:00:03]} 42. Rd5 {[%clk 0:00:05]}  f6 {[%clk 0:00:04]} 43. Rxe5+ {[%clk 0:00:05]}  fxe5 {[%clk 0:00:05]} 44. Kb6 {[%clk 0:00:06]}  e4 {[%clk 0:00:05]} 45. Kxa6 {[%clk 0:00:06]}  Kg4 {[%clk 0:00:06]} 46. Kxb5 {[%clk 0:00:07]}  Kf3 {[%clk 0:00:07]} 47. a4 {[%clk 0:00:07]}  Kxf2 {[%clk 0:00:07]} 48. a5 {[%clk 0:00:08]}  e3 {[%clk 0:00:08]} 49. a6 {[%clk 0:00:09]}  e2 {[%clk 0:00:09]} 50. a7 {[%clk 0:00:10]}  e1=Q {[%clk 0:00:10]} 51. a8=Q {[%clk 0:00:11]}  Kxg3 {[%clk 0:00:10]} 52. Qg8 {[%clk 0:00:10]}  Qe5+ {[%clk 0:00:09]} 53. Kc4 {[%clk 0:00:10]}  Kxh4 {[%clk 0:00:09]} 54. b5 {[%clk 0:00:11]}  g5 {[%clk 0:00:08]} 55. b6 {[%clk 0:00:10]}  g4 {[%clk 0:00:08]} 56. Qd8+ {[%clk 0:00:09]}  Kh3 {[%clk 0:00:08]} 57. Qd3+ {[%clk 0:00:09]}  g3 {[%clk 0:00:07]} 58. b7 {[%clk 0:00:09]}  Kh2 {[%clk 0:00:06]} 59. Qd5 {[%clk 0:00:06]}  Qc7+ {[%clk 0:00:04]} 60. Kd4 {[%clk 0:00:06]}  h4 {[%clk 0:00:04]} 61. Qe4 {[%clk 0:00:05]}  h3 {[%clk 0:00:03]} 62. Qe2+ {[%clk 0:00:05]}  g2 {[%clk 0:00:04]} 63. Qe5+ {[%clk 0:00:05]}  Qxe5+ {[%clk 0:00:04]} 64. Kxe5 {[%clk 0:00:06]}  g1=Q {[%clk 0:00:05]} 65. b8=Q {[%clk 0:00:07]}  Qg3+ {[%clk 0:00:06]} 0-1


[Site "https://www.chess.com"]

[Event "Titled Tuesday Blitz September 13 Early 2022"]
[White "Livaic, Leon"]
[Black "Piesik, Piotr"]
[WhiteFideId "14531534"]
[BlackFideId "1136194"]
[WhiteElo "2540"]
[BlackElo "2221"]
[Result "1-0"]
[Round "11"]
[TimeControl "180+1"]
[Date "2022.09.13"]
[WhiteClock "0:01:51"]
[BlackClock "0:02:00"]

1. d4 {[%clk 0:03:00]}  c5 {[%clk 0:02:59]} 2. d5 {[%clk 0:03:00]}  e5 {[%clk 0:02:59]} 3. Nc3 {[%clk 0:03:00]}  d6 {[%clk 0:02:59]} 4. e4 {[%clk 0:03:01]}  Be7 {[%clk 0:03:00]} 5. Be2 {[%clk 0:02:56]}  Bg5 {[%clk 0:03:00]} 6. Nf3 {[%clk 0:02:57]}  Bxc1 {[%clk 0:02:59]} 7. Rxc1 {[%clk 0:02:57]}  Ne7 {[%clk 0:03:00]} 8. Nd2 {[%clk 0:02:56]}  O-O {[%clk 0:03:00]} 9. O-O {[%clk 0:02:55]}  Nd7 {[%clk 0:02:59]} 10. a4 {[%clk 0:02:52]}  f5 {[%clk 0:02:55]} 11. Nc4 {[%clk 0:02:47]}  Nf6 {[%clk 0:02:55]} 12. exf5 {[%clk 0:02:38]}  Nxf5 {[%clk 0:02:52]} 13. Bd3 {[%clk 0:02:34]}  Nd4 {[%clk 0:02:49]} 14. Ne4 {[%clk 0:02:31]}  Nxe4 {[%clk 0:02:48]} 15. Bxe4 {[%clk 0:02:31]}  Bf5 {[%clk 0:02:47]} 16. f3 {[%clk 0:02:17]}  Bg6 {[%clk 0:02:35]} 17. c3 {[%clk 0:02:14]}  Nf5 {[%clk 0:02:34]} 18. Qd3 {[%clk 0:02:03]}  b6 {[%clk 0:02:18]} 19. b4 {[%clk 0:02:00]}  Rc8 {[%clk 0:02:16]} 20. b5 {[%clk 0:01:59]}  Rc7 {[%clk 0:02:15]} 21. a5 {[%clk 0:01:59]}  Rcf7 {[%clk 0:02:15]} 22. axb6 {[%clk 0:01:59]}  axb6 {[%clk 0:02:15]} 23. Ra1 {[%clk 0:01:58]}  Qc7 {[%clk 0:02:12]} 24. Ra6 {[%clk 0:01:57]}  Rb8 {[%clk 0:02:12]} 25. Rfa1 {[%clk 0:01:57]}  Ne7 {[%clk 0:02:09]} 26. Ra7 {[%clk 0:01:54]}  Qd8 {[%clk 0:02:08]} 27. Bxg6 {[%clk 0:01:53]}  Nxg6 {[%clk 0:02:07]} 28. Rxf7 {[%clk 0:01:53]}  Kxf7 {[%clk 0:02:08]} 29. Ra7+ {[%clk 0:01:51]}  Kg8 {[%clk 0:02:08]} 30. Qf5 {[%clk 0:01:52]}  Ra8 {[%clk 0:02:00]} 31. Qf7+ {[%clk 0:01:51]} 1-0


[Site "https://www.chess.com"]

[Event "Titled Tuesday Blitz September 13 Early 2022"]
[White "Maksimovic, Bojan"]
[Black "Lopez, Henry"]
[WhiteFideId "14408120"]
[BlackFideId "5203830"]
[WhiteElo "2447"]
[BlackElo "2177"]
[Result "1-0"]
[Round "11"]
[TimeControl "180+1"]
[Date "2022.09.13"]
[WhiteClock "0:01:36"]
[BlackClock "0:01:17"]

1. Nf3 {[%clk 0:03:00]}  Nf6 {[%clk 0:02:57]} 2. g3 {[%clk 0:03:00]}  b6 {[%clk 0:02:55]} 3. Bg2 {[%clk 0:03:00]}  Bb7 {[%clk 0:02:56]} 4. O-O {[%clk 0:03:00]}  c5 {[%clk 0:02:56]} 5. d3 {[%clk 0:03:01]}  g6 {[%clk 0:02:50]} 6. e4 {[%clk 0:02:54]}  d6 {[%clk 0:02:49]} 7. Nc3 {[%clk 0:02:54]}  Bg7 {[%clk 0:02:49]} 8. h3 {[%clk 0:02:54]}  e5 {[%clk 0:02:49]} 9. Bg5 {[%clk 0:02:53]}  h6 {[%clk 0:02:48]} 10. Bxf6 {[%clk 0:02:54]}  Bxf6 {[%clk 0:02:48]} 11. Nd5 {[%clk 0:02:54]}  Bg7 {[%clk 0:02:47]} 12. Nd2 {[%clk 0:02:54]}  O-O {[%clk 0:02:46]} 13. a4 {[%clk 0:02:54]}  Nc6 {[%clk 0:02:45]} 14. c3 {[%clk 0:02:52]}  Ne7 {[%clk 0:02:44]} 15. Qb3 {[%clk 0:02:52]}  Nxd5 {[%clk 0:02:43]} 16. exd5 {[%clk 0:02:52]}  Rb8 {[%clk 0:02:42]} 17. a5 {[%clk 0:02:51]}  b5 {[%clk 0:02:37]} 18. a6 {[%clk 0:02:52]}  Bc8 {[%clk 0:02:36]} 19. Qc2 {[%clk 0:02:45]}  f5 {[%clk 0:02:34]} 20. b4 {[%clk 0:02:45]}  Qc7 {[%clk 0:02:26]} 21. bxc5 {[%clk 0:02:45]}  Qxc5 {[%clk 0:02:25]} 22. Nb3 {[%clk 0:02:45]}  Qc7 {[%clk 0:02:25]} 23. Na5 {[%clk 0:02:45]}  Rb6 {[%clk 0:02:16]} 24. Nc6 {[%clk 0:02:45]}  Kh7 {[%clk 0:02:09]} 25. Ra2 {[%clk 0:02:36]}  Bd7 {[%clk 0:02:08]} 26. Rb1 {[%clk 0:02:31]}  Re8 {[%clk 0:01:46]} 27. Rab2 {[%clk 0:02:20]}  Bxc6 {[%clk 0:01:45]} 28. dxc6 {[%clk 0:02:16]}  Reb8 {[%clk 0:01:46]} 29. c4 {[%clk 0:02:11]}  e4 {[%clk 0:01:38]} 30. Rxb5 {[%clk 0:01:45]}  Qxc6 {[%clk 0:01:29]} 31. Rxb6 {[%clk 0:01:44]}  Rxb6 {[%clk 0:01:28]} 32. Rxb6 {[%clk 0:01:44]}  exd3 {[%clk 0:01:17]} 33. Qb3 {[%clk 0:01:36]} 1-0


[Site "https://www.chess.com"]

[Event "Titled Tuesday Blitz September 13 Early 2022"]
[White "Martinez Alcantara, Jose Eduardo"]
[Black "Tari, Aryan"]
[WhiteFideId "3805662"]
[BlackFideId "1510045"]
[WhiteElo "2703"]
[BlackElo "2612"]
[Result "1-0"]
[Round "11"]
[TimeControl "180+1"]
[Date "2022.09.13"]
[WhiteClock "0:00:10"]
[BlackClock "0:00:01"]

1. e4 {[%clk 0:03:00]}  e5 {[%clk 0:02:59]} 2. Nf3 {[%clk 0:03:00]}  Nc6 {[%clk 0:02:57]} 3. Bb5 {[%clk 0:03:01]}  Nf6 {[%clk 0:02:57]} 4. d3 {[%clk 0:03:01]}  Bc5 {[%clk 0:02:57]} 5. O-O {[%clk 0:02:58]}  Nd4 {[%clk 0:02:57]} 6. Be3 {[%clk 0:02:58]}  Nxf3+ {[%clk 0:02:56]} 7. Qxf3 {[%clk 0:02:59]}  Bxe3 {[%clk 0:02:56]} 8. fxe3 {[%clk 0:03:00]}  O-O {[%clk 0:02:51]} 9. Nc3 {[%clk 0:03:00]}  c6 {[%clk 0:02:50]} 10. Bc4 {[%clk 0:03:00]}  d6 {[%clk 0:02:47]} 11. h3 {[%clk 0:02:58]}  b5 {[%clk 0:02:43]} 12. Bb3 {[%clk 0:02:58]}  a5 {[%clk 0:02:42]} 13. a4 {[%clk 0:02:58]}  b4 {[%clk 0:02:42]} 14. Ne2 {[%clk 0:02:58]}  Be6 {[%clk 0:02:42]} 15. d4 {[%clk 0:02:40]}  Re8 {[%clk 0:02:30]} 16. Bxe6 {[%clk 0:02:33]}  Rxe6 {[%clk 0:02:28]} 17. Ng3 {[%clk 0:02:30]}  d5 {[%clk 0:01:43]} 18. Rad1 {[%clk 0:01:39]}  Qc7 {[%clk 0:01:18]} 19. exd5 {[%clk 0:01:32]}  cxd5 {[%clk 0:01:18]} 20. Rd2 {[%clk 0:01:19]}  Rae8 {[%clk 0:01:15]} 21. Nf5 {[%clk 0:01:18]}  Ne4 {[%clk 0:01:08]} 22. Rdd1 {[%clk 0:01:18]}  Rf6 {[%clk 0:00:47]} 23. Qg4 {[%clk 0:01:18]}  Rg6 {[%clk 0:00:47]} 24. Qf3 {[%clk 0:01:18]}  Rf6 {[%clk 0:00:20]} 25. dxe5 {[%clk 0:01:10]}  Qxe5 {[%clk 0:00:19]} 26. Qg4 {[%clk 0:01:09]}  Rg6 {[%clk 0:00:17]} 27. Qf4 {[%clk 0:01:09]}  Qe6 {[%clk 0:00:12]} 28. Rxd5 {[%clk 0:01:03]}  Ng5 {[%clk 0:00:07]} 29. Kh2 {[%clk 0:00:52]}  h5 {[%clk 0:00:05]} 30. Rd6 {[%clk 0:00:47]}  Qe5 {[%clk 0:00:05]} 31. Rxg6 {[%clk 0:00:28]}  fxg6 {[%clk 0:00:05]} 32. Nd6 {[%clk 0:00:28]}  Re6 {[%clk 0:00:03]} 33. Qxe5 {[%clk 0:00:29]}  Rxe5 {[%clk 0:00:03]} 34. Nc4 {[%clk 0:00:29]}  Rc5 {[%clk 0:00:03]} 35. b3 {[%clk 0:00:29]}  Ne4 {[%clk 0:00:03]} 36. Rd1 {[%clk 0:00:28]}  Nc3 {[%clk 0:00:03]} 37. Rd8+ {[%clk 0:00:27]}  Kh7 {[%clk 0:00:03]} 38. Ra8 {[%clk 0:00:23]}  Nxa4 {[%clk 0:00:02]} 39. Rxa5 {[%clk 0:00:24]}  Rxa5 {[%clk 0:00:01]} 40. Nxa5 {[%clk 0:00:25]}  Nc3 {[%clk 0:00:02]} 41. Nc6 {[%clk 0:00:24]}  g5 {[%clk 0:00:01]} 42. Nxb4 {[%clk 0:00:24]}  Kg6 {[%clk 0:00:02]} 43. Nd3 {[%clk 0:00:22]}  Kf5 {[%clk 0:00:02]} 44. Nf2 {[%clk 0:00:20]}  Ke5 {[%clk 0:00:02]} 45. g4 {[%clk 0:00:20]}  h4 {[%clk 0:00:02]} 46. Kg2 {[%clk 0:00:20]}  Nd5 {[%clk 0:00:02]} 47. Kf3 {[%clk 0:00:20]}  Kd6 {[%clk 0:00:02]} 48. Ne4+ {[%clk 0:00:19]}  Ke5 {[%clk 0:00:03]} 49. Nxg5 {[%clk 0:00:20]}  Nb4 {[%clk 0:00:03]} 50. Ke2 {[%clk 0:00:16]}  Nxc2 {[%clk 0:00:04]} 51. Nf3+ {[%clk 0:00:17]}  Ke4 {[%clk 0:00:04]} 52. Nd2+ {[%clk 0:00:17]}  Ke5 {[%clk 0:00:04]} 53. Kd3 {[%clk 0:00:16]}  Ne1+ {[%clk 0:00:03]} 54. Kc4 {[%clk 0:00:17]}  Ng2 {[%clk 0:00:04]} 55. Kc5 {[%clk 0:00:12]}  Nxe3 {[%clk 0:00:04]} 56. b4 {[%clk 0:00:11]}  Nd5 {[%clk 0:00:02]} 57. b5 {[%clk 0:00:10]}  Nf6 {[%clk 0:00:02]} 58. Kc6 {[%clk 0:00:09]}  Nd5 {[%clk 0:00:02]} 59. Nf3+ {[%clk 0:00:09]}  Ke4 {[%clk 0:00:02]} 60. Nxh4 {[%clk 0:00:10]}  Nf4 {[%clk 0:00:01]} 61. b6 {[%clk 0:00:10]} 1-0


[Site "https://www.chess.com"]

[Event "Titled Tuesday Blitz September 13 Early 2022"]
[White "Molina, Roberto Junio Brito"]
[Black "Arnaudov, G. Petar"]
[WhiteFideId "2109450"]
[BlackFideId "2907127"]
[WhiteElo "2403"]
[BlackElo "2431"]
[Result "1-0"]
[Round "11"]
[TimeControl "180+1"]
[Date "2022.09.13"]
[WhiteClock "0:01:50"]
[BlackClock "0:00:38"]

1. d4 {[%clk 0:03:00]}  Nf6 {[%clk 0:02:59]} 2. Nf3 {[%clk 0:03:00]}  e6 {[%clk 0:02:58]} 3. e3 {[%clk 0:03:01]}  c5 {[%clk 0:02:56]} 4. Bd3 {[%clk 0:03:01]}  b6 {[%clk 0:02:53]} 5. O-O {[%clk 0:03:00]}  Bb7 {[%clk 0:02:53]} 6. Qe2 {[%clk 0:03:00]}  cxd4 {[%clk 0:02:48]} 7. exd4 {[%clk 0:03:00]}  Be7 {[%clk 0:02:49]} 8. Bf4 {[%clk 0:02:59]}  d6 {[%clk 0:02:48]} 9. Nbd2 {[%clk 0:03:00]}  Nbd7 {[%clk 0:02:48]} 10. h3 {[%clk 0:03:00]}  O-O {[%clk 0:02:47]} 11. Rfe1 {[%clk 0:03:01]}  a6 {[%clk 0:02:46]} 12. a4 {[%clk 0:03:00]}  Qc7 {[%clk 0:02:45]} 13. c3 {[%clk 0:03:00]}  Rfe8 {[%clk 0:02:41]} 14. Bh2 {[%clk 0:03:01]}  Bf8 {[%clk 0:02:41]} 15. Nc4 {[%clk 0:03:01]}  Rac8 {[%clk 0:02:37]} 16. Ne3 {[%clk 0:02:59]}  e5 {[%clk 0:02:29]} 17. Bxa6 {[%clk 0:02:53]}  Bxa6 {[%clk 0:01:58]} 18. Qxa6 {[%clk 0:02:52]}  Qc6 {[%clk 0:01:50]} 19. Qb5 {[%clk 0:02:48]}  e4 {[%clk 0:01:37]} 20. Qxc6 {[%clk 0:02:46]}  Rxc6 {[%clk 0:01:36]} 21. Nd2 {[%clk 0:02:46]}  d5 {[%clk 0:01:36]} 22. f3 {[%clk 0:02:42]}  Rce6 {[%clk 0:01:30]} 23. fxe4 {[%clk 0:02:37]}  Nxe4 {[%clk 0:01:28]} 24. Ndf1 {[%clk 0:02:32]}  Nd2 {[%clk 0:01:25]} 25. Nxd2 {[%clk 0:02:28]}  Rxe3 {[%clk 0:01:24]} 26. Rxe3 {[%clk 0:02:29]}  Rxe3 {[%clk 0:01:24]} 27. Kf2 {[%clk 0:02:29]}  Re8 {[%clk 0:01:23]} 28. a5 {[%clk 0:02:26]}  bxa5 {[%clk 0:01:22]} 29. Rxa5 {[%clk 0:02:26]}  Nf6 {[%clk 0:01:18]} 30. Be5 {[%clk 0:02:24]}  Rd8 {[%clk 0:01:14]} 31. Bxf6 {[%clk 0:02:22]}  gxf6 {[%clk 0:01:13]} 32. Nf1 {[%clk 0:02:22]}  Rb8 {[%clk 0:01:12]} 33. b4 {[%clk 0:02:18]}  Rc8 {[%clk 0:01:09]} 34. Ra3 {[%clk 0:02:17]}  Bh6 {[%clk 0:01:04]} 35. Ne3 {[%clk 0:02:17]}  Rd8 {[%clk 0:01:00]} 36. Ra5 {[%clk 0:02:11]}  Bxe3+ {[%clk 0:00:58]} 37. Kxe3 {[%clk 0:02:11]}  Kg7 {[%clk 0:00:58]} 38. Kd3 {[%clk 0:02:00]}  f5 {[%clk 0:00:57]} 39. Ra6 {[%clk 0:01:58]}  f4 {[%clk 0:00:55]} 40. b5 {[%clk 0:01:57]}  Re8 {[%clk 0:00:55]} 41. Ra2 {[%clk 0:01:50]}  Re3+ {[%clk 0:00:53]} 42. Kc2 {[%clk 0:01:51]}  Re6 {[%clk 0:00:38]} 43. Kb3 {[%clk 0:01:50]} 1-0


[Site "https://www.chess.com"]